bitfinex/quotes_ETHUSD_20250519
["timestamp","ask_amount","ask_price","bid_price","bid_amount"]
[1747678559799,3.98565165,2509.0,2508.9,8.321]
[1747678560014,3.98582768,2508.9,2508.7,8.0]
[1747678560173,3.98582768,2508.9,2508.8,8.321]
[1747678561570,0.807,2509.4,2508.8,8.321]
[1747678561770,3.98565165,2509.0,2508.9,0.7682]
[1747678562014,3.98554373,2509.1,2508.9,0.7682]
[1747678562308,3.98565165,2509.0,2508.9,0.7682]
[1747678562689,3.98552335,2509.1,2508.9,0.7682]
[1747678563302,0.807,2509.4,2508.9,0.7682]
[1747678563303,3.98533019,2509.3,2508.9,0.7682]
[1747678563611,3.9855727,2509.1,2508.9,0.7682]
[1747678564106,3.98565165,2509.0,2508.9,0.7682]
[1747678564490,3.98565165,2509.0,2508.9,0.38106429]
[1747678565700,3.9855581,2509.1,2508.9,0.38106429]
[1747678565907,3.98565165,2509.0,2508.9,0.38106429]
[1747678567111,3.98558682,2509.1,2508.9,0.38106429]
[1747678567814,3.98565165,2509.0,2508.9,0.38106429]
[1747678567997,3.98565165,2509.0,2508.8,8.321]
[1747678568380,3.9855691,2509.1,2508.8,8.321]
[1747678568712,3.98571827,2509.0,2508.8,8.321]
[1747678569413,0.807,2509.4,2508.9,0.38117983]
[1747678569414,3.98553642,2509.1,2508.9,0.38117983]
[1747678569582,3.9853891,2509.2,2508.9,0.38117983]
[1747678570110,3.98421643,2510.0,2508.9,0.38117983]
[1747678570111,0.8264,2509.9,2509.2,4.53527264]
[1747678570427,8.8264,2510.2,2509.4,3.98494982]
[1747678570600,3.98434126,2509.9,2509.3,12.30508699]
[1747678570805,3.98446292,2509.8,2509.5,0.38117983]
[1747678571314,3.98456547,2509.7,2509.5,0.38117983]
[1747678571498,3.98442337,2509.8,2509.5,0.38117983]
[1747678571698,3.98442337,2509.8,2509.5,1.17637983]
[1747678571900,0.8264,2510.7,2509.7,0.55]
[1747678572106,3.98392611,2510.1,2509.8,25.525]
[1747678572300,3.98382517,2510.2,2509.8,25.525]
[1747678572503,3.98361998,2510.3,2509.8,29.50924566]
[1747678572726,3.9831116,2510.6,2510.0,3.98397786]
[1747678572904,3.98324082,2510.6,2510.0,0.55]
[1747678573215,3.98318725,2510.6,2510.2,1.3452]
[1747678573423,3.98318725,2510.6,2510.3,8.85289959]
[1747678573648,3.98305159,2510.7,2510.3,8.85289959]
[1747678573913,0.8264,2511.1,2510.4,0.55]
[1747678574125,0.8264,2511.5,2510.8,0.55]
[1747678574310,0.8264,2511.5,2510.7,0.7952]
[1747678574311,3.9813672,2511.7,2510.9,25.502]
[1747678574498,3.98208485,2511.3,2510.9,28.93172]
[1747678574701,3.9821756,2511.2,2510.9,28.93172]
[1747678574913,3.98187045,2511.4,2511.0,0.38117983]
[1747678574914,3.98203803,2511.3,2511.0,0.38117983]
[1747678575126,3.98185145,2511.4,2511.2,0.7637]
[1747678575298,3.98185145,2511.4,2511.2,1.73318798]
[1747678575989,3.98200135,2511.3,2511.2,1.73318798]
[1747678576243,3.98200135,2511.3,2511.2,0.7637]
[1747678578196,3.9818265,2511.5,2511.2,0.7637]
[1747678579001,3.98184695,2511.4,2511.2,0.7637]
[1747678579239,3.98184695,2511.4,2511.2,1.06318646]
[1747678579535,3.98152711,2511.6,2511.2,2.02450511]
[1747678580030,3.98158239,2511.6,2511.3,0.55]
[1747678580206,3.98168425,2511.5,2511.4,8.294]
[1747678580814,3.98141093,2511.7,2511.4,8.294]
[1747678581010,3.98159496,2511.6,2511.4,8.294]
[1747678581233,3.98159496,2511.6,2511.4,18.18085051]
[1747678581732,3.98132009,2511.8,2511.5,0.55]
[1747678582032,3.98152572,2511.6,2511.5,0.55]
[1747678582334,3.98073325,2512.1,2511.5,0.55]
[1747678582544,3.98073325,2512.1,2511.5,2.42308505]
[1747678582850,0.7923,2512.4,2511.6,0.7578]
[1747678583140,3.98112076,2511.9,2511.6,0.7578]
[1747678583314,3.98041635,2512.3,2511.6,0.7578]
[1747678583508,3.9793076,2513.0,2511.9,0.55]
[1747678583708,0.7923,2513.1,2512.1,8.7578]
[1747678584043,3.98044098,2512.3,2512.1,8.7578]
[1747678584236,3.98034302,2512.4,2512.1,8.7578]
[1747678584441,3.98044098,2512.3,2512.2,11.42428]
[1747678584947,3.98031086,2512.4,2512.3,8.0]
[1747678586832,3.98016075,2512.5,2512.3,0.55]
[1747678587331,3.98025792,2512.4,2512.3,0.55]
[1747678588434,3.98015963,2512.5,2512.3,0.55]
[1747678588629,3.98015963,2512.5,2512.3,1.823208]
[1747678589030,3.97999031,2512.6,2512.3,1.823208]
[1747678589031,3.98025792,2512.4,2512.3,1.823208]
[1747678590352,0.7923,2513.1,2512.3,1.823208]
[1747678590553,3.98012245,2512.5,2512.3,1.823208]
[1747678590720,3.98012245,2512.5,2512.3,7.791208]
[1747678590922,3.98012245,2512.5,2512.4,1.6715488]
[1747678591445,3.98025792,2512.4,2512.3,6.518]
[1747678593771,3.98025792,2512.4,2512.3,0.55]
[1747678593947,3.98025792,2512.4,2512.3,8.838]
[1747678594151,3.98025792,2512.4,2512.3,0.55]
[1747678594353,3.98025792,2512.4,2512.3,8.838]
[1747678594975,3.98025792,2512.4,2512.3,16.838]
[1747678595440,3.98025792,2512.4,2512.3,16.288]
[1747678596060,3.98025792,2512.4,2512.3,8.288]
[1747678596376,4.76333325,2512.1,2512.0,17.194]
[1747678596562,4.81309436,2512.1,2512.0,17.194]
[1747678596759,4.76333325,2512.1,2512.0,17.194]
[1747678598175,3.98073325,2512.1,2512.0,19.02597831]
[1747678598490,3.98062429,2512.2,2512.0,36.33445831]
[1747678598689,3.98062429,2512.2,2512.1,8.0]
[1747678598898,0.8143,2512.9,2512.2,0.55]
[1747678599092,3.98025332,2512.5,2512.3,1.6288]
[1747678599247,3.98025332,2512.5,2512.4,8.288]
[1747678599891,3.98025332,2512.5,2512.4,16.288]
[1747678600451,3.98025332,2512.5,2512.4,16.66567195]
[1747678600757,3.98025332,2512.5,2512.4,18.33223915]
[1747678602179,3.98000579,2512.6,2512.5,8.0]
[1747678602496,3.98000579,2512.6,2512.5,8.55]
[1747678603495,3.97981658,2512.7,2512.5,9.3058]
[1747678603699,3.97994109,2512.6,2512.5,9.3058]
[1747678603900,3.97994109,2512.6,2512.5,11.26960391]
[1747678604200,3.97994109,2512.6,2512.5,21.27716191]
[1747678604363,3.97994109,2512.6,2512.5,13.78287291]
[1747678604565,0.7778,2513.5,2512.6,1.40334266]
[1747678604758,3.97948778,2512.9,2512.7,0.55]
[1747678605153,3.97934846,2513.0,2512.7,0.55]
[1747678605353,3.97934846,2513.0,2512.9,0.55]
[1747678605658,0.7778,2513.5,2513.0,8.0]
[1747678605880,3.97891059,2513.3,2513.2,8.0]
[1747678606186,3.97860362,2513.5,2513.3,0.55]
[1747678606353,3.97860362,2513.5,2513.4,16.262]
[1747678606698,10.14,2514.4,2513.4,16.262]
[1747678606699,3.97755032,2514.2,2513.6,0.55]
[1747678606908,3.97819946,2513.7,2513.6,0.55]
[1747678607067,3.97804121,2513.8,2513.7,8.55]
[1747678607470,3.97804121,2513.8,2513.7,11.645099]
[1747678607667,3.97804121,2513.8,2513.7,6.3104489]
[1747678607964,3.97804121,2513.8,2513.7,3.59302185]
[1747678608169,3.97804121,2513.8,2513.7,0.92767195]
[1747678608665,3.97804121,2513.8,2513.7,9.18767195]
[1747678609055,3.97804121,2513.8,2513.7,0.37767195]
[1747678609588,3.97804121,2513.8,2513.7,8.63767195]
[1747678609888,3.97804121,2513.8,2513.7,9.18767195]
[1747678610306,3.97795772,2513.9,2513.8,0.55]
[1747678610456,0.8154,2514.7,2513.8,19.883693]
[1747678610659,3.97733041,2514.3,2513.8,0.55]
[1747678610882,3.97603955,2515.1,2514.0,1.3081]
[1747678610883,3.97742061,2514.2,2514.0,1.3081]
[1747678611059,3.97742061,2514.2,2514.1,30.4655122]
[1747678611262,3.97742061,2514.2,2514.1,30.5726672]
[1747678611691,3.97732841,2514.3,2514.2,0.55]
[1747678611894,3.97732841,2514.3,2514.2,7.701903]
[1747678612410,3.97732841,2514.3,2514.2,5.002099]
[1747678612604,3.97732841,2514.3,2514.2,9.33935747]
[1747678612933,3.97732841,2514.3,2514.2,9.6392203]
[1747678613137,0.8242,2515.4,2514.4,0.55]
[1747678613302,0.8242,2515.4,2514.6,0.55]
[1747678613509,3.97630124,2514.9,2514.8,0.55]
[1747678613826,3.97630124,2514.9,2514.8,12.669518]
[1747678614709,3.97630124,2514.9,2514.8,13.04718995]
[1747678614889,3.97630124,2514.9,2514.8,18.06657195]
[1747678615089,3.97630124,2514.9,2514.8,32.19151895]
[1747678615345,3.97630124,2514.9,2514.8,26.87923495]
[1747678615494,3.97630124,2514.9,2514.8,23.49115995]
[1747678616407,3.97604405,2515.1,2514.8,23.49115995]
[1747678616618,3.97604405,2515.1,2515.0,0.55]
[1747678616911,3.97604405,2515.1,2515.0,8.55]
[1747678617105,3.97614314,2515.0,2514.9,2.39644818]
[1747678617301,3.97630124,2514.9,2514.8,1.80857195]
[1747678617525,3.97630124,2514.9,2514.8,10.06457195]
[1747678617924,3.97630124,2514.9,2514.8,0.37767195]
[1747678618116,3.97630124,2514.9,2514.8,8.63367195]
[1747678619096,4.0260077,2514.9,2514.8,0.37767195]
[1747678619300,4.76540124,2514.9,2514.8,0.37767195]
[1747678619521,4.76540124,2514.9,2514.7,8.256]
[1747678619522,3.97645936,2514.8,2514.7,8.256]
[1747678619714,3.97645936,2514.8,2514.7,9.0816]
[1747678620013,3.97645936,2514.8,2514.7,17.6316]
[1747678620532,3.97645936,2514.8,2514.7,17.0816]
[1747678620743,3.97645936,2514.8,2514.7,16.256]
[1747678622550,3.97645936,2514.8,2514.7,16.806]
[1747678622715,3.97645936,2514.8,2514.7,16.805]
[1747678622903,3.97645936,2514.8,2514.7,16.255]
[1747678623959,3.92645936,2514.8,2514.7,16.255]
[1747678624135,3.92645936,2514.8,2514.7,8.255]
[1747678624439,3.97709195,2514.4,2514.3,0.7645]
[1747678624645,3.97709195,2514.4,2514.3,14.59199777]
[1747678624945,3.97677563,2514.6,2514.5,0.55]
[1747678625110,3.97670762,2514.7,2514.6,8.55]
[1747678625302,3.97645936,2514.8,2514.7,0.55]
[1747678625503,3.97645936,2514.8,2514.7,16.805]
[1747678625724,3.97645936,2514.8,2514.7,8.0]
[1747678625918,3.97645936,2514.8,2514.3,3.23165777]
[1747678625919,3.97709195,2514.4,2514.3,1.3145]
[1747678626118,3.97725012,2514.3,2514.2,8.29375585]
[1747678626407,3.97725012,2514.3,2514.2,8.54875585]
[1747678626603,3.97740832,2514.2,2514.1,17.179]
[1747678626825,3.97740832,2514.2,2514.1,25.434]
[1747678627105,3.97740832,2514.2,2514.1,33.434]
[1747678628522,3.97740832,2514.2,2514.1,25.179]
[1747678628717,3.97740832,2514.2,2514.1,33.434]
[1747678629519,3.97740832,2514.2,2514.1,17.179]
[1747678631753,3.97740832,2514.2,2514.1,25.179]
[1747678632752,3.97740832,2514.2,2514.1,17.179]
[1747678633253,3.97740832,2514.2,2514.1,17.55745214]
[1747678634458,3.97740832,2514.2,2514.1,28.13869735]
[1747678634609,3.97725012,2514.3,2514.1,28.13869735]
[1747678634610,3.97725012,2514.3,2514.2,0.55]
[1747678634815,3.97725012,2514.3,2514.1,41.59508835]
[1747678634816,3.97740832,2514.2,2514.1,28.13869735]
[1747678635011,3.97740832,2514.2,2514.1,36.37069735]
[1747678635214,3.97733179,2514.3,2514.1,36.92069735]
[1747678635446,3.97733179,2514.3,2514.2,16.70028473]
[1747678635629,3.97718404,2514.4,2514.3,8.55]
[1747678635825,3.97718404,2514.4,2514.3,20.92278]
[1747678636226,3.97718404,2514.4,2514.3,16.782]
[1747678636853,3.97718404,2514.4,2514.3,16.232]
[1747678637258,3.97564635,2515.4,2514.4,0.55]
[1747678637422,3.97690683,2514.6,2514.5,1.3364]
[1747678637618,3.97521178,2515.6,2514.6,0.55]
[1747678637819,3.97659093,2514.8,2514.6,0.55]
[1747678638063,3.97659093,2514.8,2514.7,13.302484]
[1747678638274,3.97659093,2514.8,2514.7,12.45421761]
[1747678638418,3.97639197,2514.9,2514.8,8.55]
[1747678638619,3.97616164,2515.0,2514.8,8.782]
[1747678639423,0.7775,2515.8,2515.0,0.55]
[1747678639622,0.7775,2516.4,2515.5,0.55]
[1747678639857,3.97491371,2515.8,2515.7,8.0]
[1747678640022,1.14710865,2516.4,2515.7,8.0]
[1747678640023,1.14710865,2516.4,2515.7,9.6782]
[1747678640367,3.97472077,2515.9,2515.8,1.3364]
[1747678640665,3.97487876,2515.8,2515.7,1.6782]
[1747678640817,3.9745833,2516.0,2515.5,9.3364]
[1747678640818,3.97519478,2515.6,2515.5,9.3364]
[1747678641018,3.97519478,2515.6,2515.5,17.5664]
[1747678641218,3.97519478,2515.6,2515.5,23.329456]
[1747678641549,3.97519478,2515.6,2515.5,13.175639]
[1747678641874,3.97519478,2515.6,2515.5,4.945639]
[1747678642043,3.97582697,2515.2,2515.1,17.9526]
[1747678642245,3.97582697,2515.2,2515.1,27.97786]
[1747678642582,3.97582697,2515.2,2515.1,28.52786]
[1747678642731,0.02099701,2518.5,2515.1,28.52786]
[1747678642732,3.97472077,2515.9,2515.1,20.29786]
[1747678643076,8.8324,2516.1,2515.1,20.29786]
[1747678643077,3.9756689,2515.3,2515.2,8.23]
[1747678643235,3.9756689,2515.3,2515.2,11.623886]
[1747678643429,3.9756689,2515.3,2515.1,17.9526]
[1747678643430,3.97582697,2515.2,2515.1,17.9526]
[1747678643661,3.97537894,2515.5,2514.6,17.166]
[1747678643662,3.9767204,2514.7,2514.6,17.166]
[1747678643871,3.9767204,2514.7,2514.6,28.322502]
[1747678644033,3.9767204,2514.7,2514.6,34.32391973]
[1747678644233,3.97654314,2514.8,2514.7,0.55]
[1747678644434,3.97654314,2514.8,2514.7,10.598193]
[1747678644634,3.97621366,2515.0,2514.7,5.301747]
[1747678644866,3.97596451,2515.2,2514.7,0.84059672]
[1747678645045,3.97503676,2515.7,2515.0,0.55]
[1747678645231,3.97503676,2515.7,2515.1,16.229]
[1747678645432,3.97559525,2515.4,2515.2,0.55]
[1747678645838,3.97559525,2515.4,2515.3,0.75017471]
[1747678646364,3.97559525,2515.4,2515.3,0.57909444]
[1747678646555,3.97559525,2515.4,2515.3,8.80809444]
[1747678646753,3.97559525,2515.4,2515.3,0.57909444]
[1747678646956,4.75309525,2515.4,2515.3,8.80809444]
[1747678647269,3.97559525,2515.4,2515.3,8.80809444]
[1747678647767,3.97559525,2515.4,2515.3,8.42917471]
[1747678649959,3.97559525,2515.4,2515.3,8.97917471]
[1747678650268,3.97559525,2515.4,2515.3,17.86944145]
[1747678650791,3.975288,2515.6,2515.3,17.86944145]
[1747678651095,3.97535281,2515.5,2515.4,0.55]
[1747678651390,3.97535281,2515.5,2515.4,2.41338415]
[1747678651593,3.97514157,2515.7,2515.5,8.0]
[1747678651888,3.97445008,2516.1,2515.7,0.55]
[1747678652105,3.97487876,2515.8,2515.7,0.55]
[1747678652410,3.97475245,2515.9,2515.7,0.55]
[1747678652411,3.97478143,2515.9,2515.7,32.004938]
[1747678652571,3.97468312,2516.0,2515.9,0.55]
[1747678653397,3.97468312,2516.0,2515.9,0.92857614]
[1747678653898,3.97330847,2516.8,2515.9,0.92857614]
[1747678654189,3.97419117,2516.3,2516.0,0.8057]
[1747678654388,4.77073219,2517.0,2516.2,0.55]
[1747678654389,3.97389026,2516.5,2516.2,0.55]
[1747678654592,3.97389026,2516.5,2516.4,8.0]
[1747678655182,3.97363466,2516.6,2516.4,8.55]
[1747678655355,3.97377309,2516.5,2516.4,8.55]
[1747678655561,3.97377309,2516.5,2516.4,8.37857614]
[1747678656171,3.97377309,2516.5,2516.4,8.92857614]
[1747678656393,3.97335791,2516.8,2516.5,1.3169]
[1747678656574,3.97329942,2516.8,2516.7,8.55]
[1747678656782,0.792,2517.3,2516.7,8.55]
[1747678656984,3.97251117,2517.3,2517.0,0.7669]
[1747678657202,0.792,2518.1,2517.4,0.55]
[1747678657403,0.792,2517.7,2516.7,0.7669]
[1747678657574,3.96171069,2517.9,2516.7,8.227]
[1747678657575,3.97339802,2516.8,2516.7,8.227]
[1747678658118,3.97339802,2516.8,2516.7,16.227]
[1747678659979,3.97339802,2516.8,2516.7,16.777]
[1747678660178,3.9732282,2516.9,2516.8,0.55]
[1747678660383,3.97314156,2516.9,2516.8,0.55]
[1747678660879,3.9734573,2516.7,2516.6,25.161]
[1747678661121,3.9734573,2516.7,2516.6,33.387]
[1747678663078,3.9734573,2516.7,2516.6,33.937]
[1747678663820,3.9734573,2516.7,2516.6,33.387]
[1747678669487,3.9734573,2516.7,2516.6,33.76491289]
[1747678670334,3.9734573,2516.7,2516.6,25.53891289]
[1747678670539,3.9734573,2516.7,2516.6,33.74291289]
[1747678671102,3.9734573,2516.7,2516.6,33.365]
[1747678674610,3.9734573,2516.7,2516.6,33.74320475]
[1747678676301,3.9734573,2516.7,2516.6,25.74320475]
[1747678677127,3.9734573,2516.7,2516.6,25.365]
[1747678678809,3.9734573,2516.7,2516.6,25.364]
[1747678680631,3.9734573,2516.7,2516.2,8.67649271]
[1747678680632,3.97408894,2516.3,2516.2,8.67649271]
[1747678680837,4.78788894,2516.3,2516.2,8.67649271]
[1747678682112,4.78788894,2516.3,2516.2,0.85335823]
[1747678682315,4.78788894,2516.3,2516.2,9.05635823]
[1747678683141,5.38084625,2516.3,2516.2,9.05635823]
[1747678683527,5.38084625,2516.3,2516.2,0.85335823]
[1747678683935,3.97472077,2515.9,2515.8,25.359]
[1747678684308,4.72672077,2515.9,2515.8,17.155]
[1747678684501,3.97503676,2515.7,2515.6,0.47349271]
[1747678684946,4.75223676,2515.7,2515.6,0.47349271]
[1747678685333,5.12283758,2515.7,2515.6,0.47349271]
[1747678685522,5.17253637,2515.7,2515.6,0.47349271]
[1747678685719,13.12283758,2515.7,2515.6,0.47349271]
[1747678685933,5.12283758,2515.7,2515.6,0.47349271]
[1747678686135,5.34481596,2515.7,2515.6,0.47349271]
[1747678686630,9.35622593,2515.7,2515.6,0.47349271]
[1747678686849,12.72611085,2515.4,2515.3,0.20017471]
[1747678687050,16.68782154,2515.4,2515.3,0.20017471]
[1747678687950,17.83040074,2515.4,2515.3,0.20017471]
[1747678688743,4.72753378,2514.5,2514.4,0.47349271]
[1747678689222,3.97693378,2514.5,2514.4,0.47349271]
[1747678689426,3.97725012,2514.3,2514.2,8.205]
[1747678689627,3.75974424,2514.3,2514.2,10.7413]
[1747678690330,3.75974424,2514.3,2514.2,18.7413]
[1747678690522,3.97725012,2514.3,2514.2,19.5687]
[1747678690761,0.8128,2515.1,2514.2,19.5687]
[1747678690947,3.97702497,2514.5,2514.3,0.55]
[1747678691153,3.97709195,2514.4,2514.3,0.55]
[1747678691352,3.97709195,2514.4,2514.3,11.016641]
[1747678691943,3.97709195,2514.4,2514.3,8.55]
[1747678693017,3.97709195,2514.4,2514.3,12.041]
[1747678693339,3.97725012,2514.3,2514.2,3.3637]
[1747678693565,3.97725012,2514.3,2514.2,17.0354]
[1747678695782,3.97740832,2514.2,2514.0,0.7516]
[1747678695966,3.97740832,2514.2,2514.1,25.348]
[1747678696483,3.97835773,2513.6,2513.5,0.16404721]
[1747678696709,3.97835773,2513.6,2513.5,8.16404721]
[1747678696847,3.97835773,2513.6,2513.5,0.16404721]
[1747678697347,3.97835773,2513.6,2513.5,8.16404721]
[1747678698167,3.97835773,2513.6,2513.5,9.48914502]
[1747678698367,3.97835773,2513.6,2513.5,0.16404721]
[1747678698542,4.75925773,2513.6,2513.5,0.16404721]
[1747678699397,4.80899564,2513.6,2513.5,0.16404721]
[1747678699692,4.75925773,2513.6,2513.5,0.16404721]
[1747678699859,3.97899092,2513.2,2513.1,8.191]
[1747678701140,3.97946595,2512.9,2512.8,17.166]
[1747678701481,3.97946595,2512.9,2512.8,25.359]
[1747678701683,3.97946595,2512.9,2512.8,8.193]
[1747678706064,3.98073325,2512.1,2512.0,17.172]
[1747678706385,3.98073325,2512.1,2512.0,25.366]
[1747678706590,3.98073325,2512.1,2512.0,17.172]
[1747678706778,3.98073325,2512.1,2512.0,25.366]
[1747678708986,3.98073325,2512.1,2512.0,34.56225901]
[1747678709303,3.98056905,2512.3,2512.1,8.8239]
[1747678709466,3.98057479,2512.2,2512.1,8.8239]
[1747678709906,3.98035831,2512.4,2512.1,8.8239]
[1747678710191,3.98057479,2512.2,2512.1,8.8239]
[1747678710360,3.98057479,2512.2,2512.1,12.3625159]
[1747678712101,3.98057479,2512.2,2512.1,13.0625159]
[1747678712685,3.98057479,2512.2,2512.0,25.369]
[1747678712686,3.98073325,2512.1,2512.0,25.369]
[1747678712873,3.98073325,2512.1,2512.0,8.197]
[1747678713200,3.98152572,2511.6,2511.5,0.7609]
[1747678713407,3.98152572,2511.6,2511.5,8.9579]
[1747678713565,3.98152572,2511.6,2511.5,16.9579]
[1747678714216,3.98152572,2511.6,2511.5,18.68400764]
[1747678714691,3.98145622,2511.7,2511.6,8.0]
[1747678720282,3.98145622,2511.7,2511.6,7.9]
[1747678720482,3.98152572,2511.6,2511.5,9.5079]
[1747678720927,3.98200135,2511.3,2511.0,0.47349271]
[1747678721083,3.9823185,2511.1,2511.0,0.47349271]
[1747678721990,3.98224479,2511.2,2511.0,0.47349271]
[1747678722186,3.9823185,2511.1,2511.0,0.47349271]
[1747678722573,4.86029775,2511.1,2511.0,0.47349271]
[1747678722804,4.8105185,2511.1,2511.0,0.47349271]
[1747678723505,8.9153323,2511.1,2511.0,0.47349271]
[1747678723876,9.13522547,2511.1,2511.0,0.47349271]
[1747678724076,9.5017709,2511.1,2511.0,0.47349271]
[1747678724298,17.5017709,2511.1,2511.0,0.47349271]
[1747678724806,3.98279432,2510.8,2509.8,8.199]
[1747678725115,4.81229432,2510.8,2509.8,8.199]
[1747678725515,5.17883975,2510.8,2509.8,8.199]
[1747678726093,5.22863811,2510.8,2509.8,8.199]
[1747678726303,5.17883975,2510.8,2509.8,8.199]
[1747678726501,17.33345678,2510.8,2509.8,8.199]
[1747678726732,17.50333231,2510.8,2509.8,8.199]
[1747678727521,17.50333231,2510.8,2509.6,17.186]
[1747678727740,18.05333231,2510.8,2509.6,17.186]
[1747678728005,3.98565165,2509.0,2508.9,8.185]
[1747678728192,3.98565165,2509.0,2508.4,0.8152]
[1747678728193,3.98581051,2508.9,2508.4,0.8152]
[1747678728393,4.12931051,2508.9,2508.0,1.26607065]
[1747678728615,20.31431051,2508.9,2508.0,1.26607065]
[1747678728827,21.15578108,2508.9,2508.8,0.32999271]
[1747678729027,11.98612827,2508.7,2508.0,1.26607065]
[1747678729235,12.42148185,2508.1,2508.0,1.26607065]
[1747678729401,24.71129565,2508.1,2508.0,1.26607065]
[1747678729903,25.26129565,2508.1,2508.0,1.26607065]
[1747678730103,42.67438338,2508.1,2508.0,1.26607065]
[1747678730328,34.48938338,2508.1,2508.0,1.26607065]
[1747678730552,42.67438338,2508.1,2508.0,1.26607065]
[1747678730730,42.12838338,2508.1,2508.0,1.26607065]
[1747678730904,42.45929565,2508.1,2508.0,1.26607065]
[1747678731111,0.4344,2507.6,2506.5,8.0]
[1747678731316,3.9894678,2506.6,2506.5,2.13451891]
[1747678731526,3.98962696,2506.5,2506.4,5.15618911]
[1747678731700,3.98962696,2506.5,2506.4,4.35488911]
[1747678733048,11.9886347,2507.2,2506.4,4.35488911]
[1747678733049,0.4344,2507.2,2506.4,4.35488911]
[1747678733356,3.98867217,2507.1,2506.4,4.35488911]
[1747678733660,0.4344,2507.2,2506.5,8.0]
[1747678733948,3.98962696,2506.5,2506.4,4.35488911]
[1747678734305,3.98928828,2506.8,2506.4,4.79037802]
[1747678734548,3.98927691,2506.8,2506.4,0.43548891]
[1747678734708,3.98962696,2506.5,2506.2,8.0]
[1747678735025,3.98978614,2506.4,2506.3,8.193]
[1747678735613,0.4344,2508.9,2506.6,8.0]
[1747678735799,4.1048138,2508.1,2506.8,0.8029]
[1747678735999,3.98899038,2506.9,2506.8,8.9959]
[1747678736421,4.1048138,2507.5,2506.1,0.8279]
[1747678736755,3.98970571,2506.5,2506.2,8.194]
[1747678736959,4.15467828,2507.5,2506.2,8.194]
[1747678736960,3.98819494,2507.4,2506.2,1.45219]
[1747678737128,3.9893895,2506.7,2506.4,8.0]
[1747678737450,0.4344,2507.9,2506.6,1.3434]
[1747678737748,0.4344,2508.3,2507.2,0.55]
[1747678738112,0.4344,2508.3,2507.4,8.0]
[1747678738245,3.98664822,2508.4,2507.4,8.0]
[1747678738440,4.42079816,2508.6,2507.5,0.55]
[1747678738775,4.42079816,2508.6,2507.4,8.0]
[1747678738776,3.98797059,2507.6,2507.4,8.0]
[1747678738922,3.98780083,2507.7,2507.4,8.0]
[1747678739116,3.98740808,2507.9,2507.4,8.0]
[1747678739321,3.98774216,2507.7,2507.4,11.3407]
[1747678739568,3.98692766,2508.2,2507.1,0.7934]
[1747678739725,3.98819998,2507.4,2507.1,0.7934]
[1747678739927,3.98819998,2507.4,2507.1,8.7934]
[1747678740176,3.98804371,2507.5,2507.1,8.7934]
[1747678740324,3.98826422,2507.4,2507.1,8.7934]
[1747678740527,3.98803662,2507.5,2507.1,10.26532643]
[1747678740774,3.9882937,2507.4,2507.1,10.26532643]
[1747678741077,3.98808653,2507.5,2507.1,10.26532643]
[1747678741250,3.98851308,2507.2,2507.0,8.195]
[1747678741555,3.98930865,2506.7,2506.6,8.195]
[1747678742392,3.99249411,2504.7,2503.9,1.58231275]
[1747678742660,3.98782376,2504.7,2503.9,1.56139788]
[1747678742820,3.98782376,2504.7,2504.1,0.2078861]
[1747678743020,3.98782376,2504.7,2503.9,1.56139788]
[1747678743230,4.03773952,2504.7,2503.9,1.56139788]
[1747678743431,3.98782376,2504.7,2503.8,0.7684]
[1747678743870,4.0377421,2504.7,2503.8,0.7684]
[1747678744065,3.98782376,2504.7,2503.8,0.7684]
[1747678744266,3.99370796,2504.0,2503.8,0.7684]
[1747678744433,3.99249411,2504.7,2503.8,0.7684]
[1747678744635,13.5312138,2504.9,2503.3,0.7684]
[1747678744832,13.5312138,2504.9,2503.4,8.992]
[1747678744833,0.04992494,2504.8,2503.4,8.992]
[1747678745135,3.99319955,2504.3,2503.4,8.992]
[1747678745355,3.99428485,2503.6,2503.3,0.7684]
[1747678745666,3.99456738,2503.4,2503.3,0.7684]
[1747678745869,3.99361022,2504.0,2502.8,8.7684]
[1747678746172,0.44280102,2504.0,2502.9,2.21152891]
[1747678746471,3.99449797,2503.5,2502.9,2.21152891]
[1747678746637,9.4304,2504.5,2503.1,8.0]
[1747678746831,3.99297236,2504.4,2503.3,8.0]
[1747678747031,3.99313181,2504.3,2503.3,8.0]
[1747678747253,3.99412943,2503.7,2503.3,8.0]
[1747678747454,0.4344,2504.5,2503.3,9.6996]
[1747678747674,3.99456738,2503.4,2503.3,9.6996]
[1747678747875,3.99377253,2503.9,2503.3,9.6996]
[1747678747876,3.99297236,2504.4,2503.3,11.8676]
[1747678748031,3.99409668,2503.7,2503.3,9.6996]
[1747678748236,3.99409668,2503.7,2503.4,1.86956]
[1747678748467,4.42723873,2504.5,2503.4,1.86956]
[1747678748468,0.4344,2504.5,2503.4,1.86956]
[1747678748767,3.99389128,2503.9,2503.6,0.7942]
[1747678748972,3.99265351,2504.6,2503.6,0.7942]
[1747678749269,3.99408874,2503.7,2503.6,17.7932]
[1747678749470,3.99321924,2504.3,2503.6,17.7932]
[1747678749670,3.99394165,2503.8,2503.6,19.759476]
[1747678749874,3.99403964,2503.8,2503.6,19.759476]
[1747678750062,3.99408874,2503.7,2503.6,19.759476]
[1747678750259,3.99357861,2504.1,2503.7,8.55]
[1747678750459,3.99233471,2504.8,2503.8,2.4499556]
[1747678750667,3.99360719,2504.1,2503.8,2.4499556]
[1747678750981,3.99376971,2503.9,2503.8,2.4499556]
[1747678751333,3.99249411,2504.7,2503.8,2.4499556]
[1747678751533,3.99376971,2503.9,2503.8,2.4499556]
[1747678751848,3.99373123,2504.0,2503.8,2.4499556]
[1747678752162,3.99376971,2503.9,2503.8,2.4499556]
[1747678753284,3.99363706,2504.0,2503.8,2.4499556]
[1747678753458,3.99376971,2503.9,2503.8,2.4499556]
[1747678754337,3.99408874,2503.7,2503.6,9.7932]
[1747678754680,3.99249411,2504.7,2503.6,12.0654]
[1747678754839,3.99408874,2503.7,2503.6,10.3432]
[1747678756542,3.99408874,2503.7,2503.6,9.7932]
[1747678756745,3.99399986,2503.8,2503.6,17.567827]
[1747678756943,3.99408874,2503.7,2503.6,9.7932]
[1747678757184,3.99401161,2503.8,2503.7,8.0]
[1747678757383,3.99401161,2503.8,2503.6,9.7932]